Cogmind - Beta 16.1 @@@ ROGUE MODE // 2026.03.11 @ 00:27:25 Player: CONM Result: Destroyed by Y-45 Defender with Heavy Assault Rifle Performance ------------- Evolutions (0) 0 Regions Visited (4) 800 Robots Destroyed (15) 75 Value Destroyed (280) 280 Prototype IDs (0) 0 Alien Tech Used (0) 0 Bonus (0) 0 TOTAL SCORE: 1155 Bonus ------- None Cogmind --------- Core Integrity 0/250 Matter 94/300 Energy 300/300 System Corruption 0% Temperature Cool (9) Movement Rolling (100) Location -9/Recycling Parts ------- > --- POWER (1) -------- (None) > --- PROPULSION (2) --- Compact Wheel > --- UTILITY (2) ------ Small Storage Unit Large Battery > --- WEAPON (2) ------- Light Assault Rifle Light Assault Rifle > --- INVENTORY (8) ---- Improved Terrain Scanner Grenade Launcher Datajack Peak State ------------ > --- POWER ------------ Ion Engine > --- PROPULSION ------- Light Treads Light Treads > --- UTILITY ---------- Small Storage Unit Seismic Detector > --- WEAPON ----------- Light Assault Rifle Light Assault Rifle > --- INVENTORY -------- Light Ion Engine Wheel Compact Wheel Medium Matter Pod Improved Terrain Scanner Grenade Launcher Grenade Launcher Datajack [Rating: 8] Favorites ----------- Power Ion Engine Engine Ion Engine Propulsion Light Treads Treads Light Treads Wheel Compact Wheel Utility Small Storage Unit Device Seismic Detector Storage Small Storage Unit Weapon Light Assault Rifle Ballistic Gun Light Assault Rifle Launcher Grenade Launcher Build | -11 -10 -10 -10 -9 ------- Run | Yrd Mat Min Sub Rec Slots Evolved . | . . . . . Power . | . . . . . Propulsion . | . . . . . Utility . | . . . . . Weapon . | . . . . . Parts Attached 13 | 8 . . 2 3 Power 2 | 2 . . . . Engine 2 | 2 . . . . Core . | . . . . . Reactor . | . . . . . Propulsion 4 | 2 . . . 2 Treads 2 | 2 . . . . Leg . | . . . . . Wheel 2 | . . . . 2 Hover . | . . . . . Flight . | . . . . . Utility 3 | 2 . . . 1 Device 1 | 1 . . . . Storage 2 | 1 . . . 1 Processor . | . . . . . Hackware . | . . . . . Protection . | . . . . . Artifact . | . . . . . Weapon 4 | 2 . . 2 . Energy Gun . | . . . . . Energy Cannon . | . . . . . Ballistic Gun 2 | 2 . . . . Ballistic Cannon . | . . . . . Launcher 2 | . . . 2 . Special Weapon . | . . . . . Impact Weapon . | . . . . . Slashing Weapon . | . . . . . Piercing Weapon . | . . . . . Special Melee Weapon . | . . . . . Unidentified Prototypes . | . . . . . Parts Lost 7 | . . . 2 5 Power 2 | . . . . 2 Propulsion 3 | . . . 1 2 Utility 1 | . . . . 1 Weapon 1 | . . . 1 . Highest Loss Streak 5 | . . . 2 5 To Critical Strikes . | . . . . . Average Backups 6 | 2 6 8 7 6 Power . | . 1 1 1 . Propulsion 1 | 1 2 2 2 1 Utility 1 | . 1 2 2 1 Weapon 1 | . 1 2 1 1 Tool/Special . | . . . . . Unused Backups 2 | . . 1 . 1 Power . | . . . . . Propulsion . | . . . . . Utility 2 | . . 1 . 1 Weapon . | . . . . . Tool/Special . | . . . . . Average Slot Usage (%) 95 | . 100 100 96 85 Engine 13 | . 14 14 14 13 Treads 22 | . 28 28 24 12 Device 13 | . 14 14 14 12 Storage 14 | . 14 14 14 15 Ballistic Gun 23 | . 28 28 21 15 Launcher 4 | . . . 7 12 Peak Build Rating 8 | 7 8 8 8 7 Average Rating 6 | 4 7 8 7 5 On Entrance 5 | . 7 8 8 6 Avg Prop Armor Cover (%) . | . . . . . Naked Turns . | . . . . . Heaviest Build 15 | 13 13 13 15 15 Greatest Support 40 | 40 40 40 40 20 Greatest Overweight (x) 2 | . . . . 2 Average Overweight (x) . | . . . . . Largest Inventory Capacity 8 | 8 8 8 8 8 Average Capacity 7 | 6 8 8 8 8 Most Carried 8 | 4 8 8 8 7 Average Carried 6 | 2 6 8 7 6 Final Capacity 8 | 8 8 8 8 8 Final Carried 8 | 4 8 8 7 3 Class Distribution -------------------- 100% | Mutant Dominant Class ---------------- Mutant | -10/Materials Mutant | -10/Mines Mutant | -10/Subcaves Mutant | -9/Recycling Resources | -11 -10 -10 -10 -9 ----------- Run | Yrd Mat Min Sub Rec Matter Collected 432 | 298 134 . . . Remotely . | . . . . . Salvage Created 244 | 28 145 47 24 . Parts 20 | 2 9 3 6 . Haulers Intercepted . | . . . . . Recyclers Shooed 1 | 1 . . . . Parts Field Recycled . | . . . . . Retrieved Matter . | . . . . . Parts Self-Destructed 2 | . . . 2 . Prevented . | . . . . . Parts Restored . | . . . . . Kills | -11 -10 -10 -10 -9 ------- Run | Yrd Mat Min Sub Rec Combat Hostiles Destroyed 11 | . 3 3 5 . Guns 6 | . 3 3 . . AOE 5 | . . . 5 . Classes Destroyed 6 | 1 2 1 2 . Worker 1 | . 1 . . . Tunneler 1 | 1 . . . . Turret 2 | . . . 2 . Swarmer 7 | . . 3 4 . Grunt 3 | . 3 . . . Subdweller 1 | . . . 1 . Best Kill Streak 7 | 1 2 2 7 . Combat Bots Only 5 | . 1 2 5 . Max Kills in Single Turn 4 | 1 1 1 4 . Gunslinging . | . . . . . Exploded 4 | . . . 4 . Melee . | . . . . . Uniques/NPCs Destroyed . | . . . . . Combat | -11 -10 -10 -10 -9 -------- Run | Yrd Mat Min Sub Rec Hostile Shots Fired 112 | . 9 14 65 24 Missed 30 | . 3 4 21 2 Hits 82 | . 6 10 44 22 Projectile 82 | . 6 10 44 22 Critical Strikes 3 | . . 1 1 1 Damage Taken 954 | . 69 78 496 311 Core 258 | . 23 . 106 129 Absorbed by Shields . | . . . . . Core Remaining (%) 100 | 100 . . . . Volleys Fired 58 | 9 17 8 13 11 Largest 2 | 2 2 2 2 2 Hottest 50 | 40 40 40 50 40 Shots Fired 106 | 18 34 16 16 22 Gun 93 | 18 34 16 3 22 Cannon . | . . . . . Launcher 13 | . . . 13 . Special . | . . . . . Kinetic 93 | 18 34 16 3 22 Thermal . | . . . . . Explosive 13 | . . . 13 . Electromagnetic . | . . . . . Robot Hit Streak 25 | 6 4 4 9 25 Robot Miss Streak 3 | 3 3 2 1 . Penetration Max . | . . . . . Secondary Targets . | . . . . . Shots Hit Robots 70 | 10 20 10 8 22 Core Hits 35 | 3 11 4 15 2 Critical Kills . | . . . . . Critical Parts Destroyed 1 | . . 1 . . Critical Strikes 2 | . . 1 . 1 Destroy 2 | . . 1 . 1 Melee Attacks . | . . . . . Impact . | . . . . . Slashing . | . . . . . Piercing . | . . . . . Sneak Attacks . | . . . . . Combat Hostiles . | . . . . . Follow-up Attacks . | . . . . . Damage Inflicted 1159 | 78 175 81 652 173 Guns 531 | 78 175 81 24 173 Cannons . | . . . . . Explosions 628 | . . . 628 . Melee . | . . . . . Ramming . | . . . . . Kinetic 531 | 78 175 81 24 173 Thermal . | . . . . . Explosive 628 | . . . 628 . Electromagnetic . | . . . . . Impact . | . . . . . Slashing . | . . . . . Piercing . | . . . . . Highest Corruption . | . . . . . Average Corruption . | . . . . . Corruption Purged . | . . . . . Corruption Blocked . | . . . . . Overload Shots . | . . . . . Overflow Damage 2 | . . . 2 . Projectiles . | . . . . . Explosions 2 | . . . 2 . Melee . | . . . . . Knockbacks . | . . . . . Impact . | . . . . . Kinetic . | . . . . . Secondary . | . . . . . Self-Inflicted Damage 111 | . . . 111 . Shots 4 | . . . 4 . Rammed . | . . . . . Targets Rammed . | . . . . . Kicked . | . . . . . Crushed . | . . . . . Highest Temperature 36 | . 6 . 11 36 Average Temperature 12 | . 6 . 8 14 Received Heat Transfer 411 | . 36 . 258 117 Siege Activations . | . . . . . Martial Activations . | . . . . . Shielding Activations . | . . . . . Robots Disrupted . | . . . . . Combat Hostiles . | . . . . . Robots Corrupted . | . . . . . Combat Hostiles . | . . . . . Parts Fried . | . . . . . Impact Corruptions . | . . . . . Robots Melted . | . . . . . Combat Hostiles . | . . . . . Parts Melted . | . . . . . Heat Transferred . | . . . . . Parts Sabotaged . | . . . . . Parts Stolen . | . . . . . Parts Stripped . | . . . . . Power Chain Reactions . | . . . . . Alert | -11 -10 -10 -10 -9 ------- Run | Yrd Mat Min Sub Rec Maximum Alert Level . | . . . . . Low Security (%) 100 | 100 100 100 . 100 Level 1 . | . . . . . Level 2 . | . . . . . Level 3 . | . . . . . Level 4 . | . . . . . Level 5 . | . . . . . High Security . | . . . . . Max Security . | . . . . . Peak Influence 65 | 5 30 65 . 38 Initial 38 | . . . . 38 Average 10 | . 7 25 . 7 Influence Increases 319 | 5 85 85 120 24 Destroy 0b10 Robot/C 240 | . 60 60 120 . Destroy 0b10 Robot/NC 10 | 5 5 . . . Destroy Leader 30 | . 20 10 . . Successful Hack 24 | . . . . 24 Lose Combat Pursuer 15 | . . 15 . . Influence Decreases 319 | 5 85 70 55 104 Entered New Map 50 | . . . 8 42 Time Decay 249 | 5 85 70 27 62 Lost Part 20 | . . . 20 . Squads Dispatched 3 | . 3 . . . Investigation . | . . . . . Extermination . | . . . . . Reinforcement 3 | . 3 . . . Assault . | . . . . . Garrison . | . . . . . Intercept . | . . . . . Searches Triggered . | . . . . . Construction Impeded . | . . . . . Haulers Reinforced . | . . . . . Active Scanning Responses . | . . . . . Cargo Convoy Interrupts . | . . . . . Stealth | -11 -10 -10 -10 -9 --------- Run | Yrd Mat Min Sub Rec Distress Signals . | . . . . . Communications Jammed . | . . . . . Distress Signals . | . . . . . Times Spotted 20 | . 8 4 7 1 Peak Tracking Total 6 | . 2 3 6 1 Tactical Retreats 1 | . . 1 . . Traps | -11 -10 -10 -10 -9 ------- Run | Yrd Mat Min Sub Rec Traps Triggered . | . . . . . Indirectly . | . . . . . Trap Hack Attempts . | . . . . . Triggered . | . . . . . Disarmed . | . . . . . Reprogrammed . | . . . . . Reused . | . . . . . Traps Extracted . | . . . . . Installed . | . . . . . Triggered . | . . . . . Machines | -11 -10 -10 -10 -9 ---------- Run | Yrd Mat Min Sub Rec Machines Disabled 4 | . . . 4 . Max in Single Turn 2 | . . . 2 . Machines Repaired . | . . . . . Machines Dismantled . | . . . . . Machines Sabotaged . | . . . . . Overloaded Fab Kills . | . . . . . Hacking | -11 -10 -10 -10 -9 --------- Run | Yrd Mat Min Sub Rec Machines Accessed 4 | . 1 . . 3 Terminals 3 | . . . . 3 Fabricators . | . . . . . Repair Stations . | . . . . . Recycling Units 1 | . 1 . . . Scanalyzers . | . . . . . Garrison Access . | . . . . . Total Hacks 11 | . 3 . . 8 Successful 5 | . 2 . . 3 Failed 6 | . 1 . . 5 Catastrophic 2 | . . . . 2 Database Lockouts . | . . . . . Manual 5 | . . . . 5 Terminals 8 | . . . . 8 Fabricators . | . . . . . Repair Stations . | . . . . . Recycling Units 3 | . 3 . . . Scanalyzers . | . . . . . Garrison Access . | . . . . . Terminal Hacks 1 | . . . . 1 Branch Access Points 1 | . . . . 1 Fabricator Hacks . | . . . . . Repair Station Hacks . | . . . . . Recycling Unit Hacks 2 | . 2 . . . Report Inventory 1 | . 1 . . . Retrieve Components 1 | . 1 . . . Scanalyzer . | . . . . . Garrison Access Hacks . | . . . . . Unauthorized Hacks 2 | . . . . 2 Terminals 2 | . . . . 2 Track 1 | . . . . 1 Botnet 1 | . . . . 1 Fabricators . | . . . . . Repair Stations . | . . . . . Recycling Units . | . . . . . Scanalyzers . | . . . . . Garrison Access . | . . . . . Data Cores Recovered . | . . . . . Used . | . . . . . Hacking Detections 3 | . . . . 3 Full Trace Events . | . . . . . Feedback Events . | . . . . . Feedback Blocked . | . . . . . Robot Schematics Acquired . | . . . . . Robots Built . | . . . . . Authchips . | . . . . . Time . | . . . . . Total Robot Build Rating . | . . . . . Part Schematics Acquired . | . . . . . Parts Built . | . . . . . Authchips . | . . . . . Time . | . . . . . Total Part Build Rating . | . . . . . Part Studies Acquired . | . . . . . Parts Repaired . | . . . . . Time . | . . . . . Parts Recycled . | . . . . . Recycled Matter . | . . . . . Retrieved Matter . | . . . . . Retrieved Components 3 | . 3 . . . Parts Scanalyzed . | . . . . . Part Schematics Acquired . | . . . . . Parts Damaged . | . . . . . Bothacking | -11 -10 -10 -10 -9 ------------ Run | Yrd Mat Min Sub Rec Used RIF Installer . | . . . . . Robots Hacked . | . . . . . Non-combat . | . . . . . Combat . | . . . . . Robot Hacks Applied . | . . . . . Relay Couplers Released . | . . . . . Fabnet Peak Effective % . | . . . . . Robots Rewired . | . . . . . Allies Hacked . | . . . . . Hacks Repelled . | . . . . . Allies | -11 -10 -10 -10 -9 -------- Run | Yrd Mat Min Sub Rec Total Allies . | . . . . . Largest Group . | . . . . . Highest-Rated Group . | . . . . . Highest-Rated Ally . | . . . . . Total Orders . | . . . . . Ally Attacks . | . . . . . Total Damage . | . . . . . Kills . | . . . . . Allies Corrupted . | . . . . . Allies Melted . | . . . . . Intel | -11 -10 -10 -10 -9 ------- Run | Yrd Mat Min Sub Rec Active Infowar (turns) 963 | 16 343 228 111 265 Seismic 963 | 16 343 228 111 265 Robot Analysis Total . | . . . . . Derelict Logs Recovered 2 | . . 2 . . Drone Launches . | . . . . . Drone Recoveries . | . . . . . Exploration | -11 -10 -10 -10 -9 ------------- Run | Yrd Mat Min Sub Rec Turns Passed 1106 | 116 343 228 111 308 Spaces Moved 510 | 50 160 87 45 168 Core 4 | 2 . . . 2 Treads 506 | 48 160 87 45 166 Legs . | . . . . . Wheels . | . . . . . Hover . | . . . . . Flight . | . . . . . Fastest Speed 50 | 50 160 160 160 150 Average Speed 159 | 155 160 160 160 159 Slowest Speed 160 | 160 160 160 160 160 Overloaded Moves . | . . . . . Propulsion Burnouts . | . . . . . Robots Hopped . | . . . . . Potential Cave-ins . | . . . . . Cave-ins Triggered . | . . . . . Exploration Rate (%) 20 | 3 30 30 4 33 Regions Visited 4 Branch Regions 3 Pre-discovered Areas 1 | . . 1 . . Known Exits Taken . | . . . . . Unknown Exits Taken 4 | 1 1 1 1 . Scrap Searched 2 | . . 2 . . Spaces Dug . | . . . . . Terrain Destroyed 27 | . . . 27 . Melee . | . . . . . Projectile . | . . . . . AOE 27 | . . . 27 . Terrain Rammed . | . . . . . Walls Destroyed . | . . . . . Machines Disabled . | . . . . . Actions | -11 -10 -10 -10 -9 --------- Run | Yrd Mat Min Sub Rec Total 712 | 70 220 164 68 190 Wait 124 | 1 40 68 9 6 Move 506 | 49 159 86 44 168 Hop . | . . . . . Pick Up 8 | 3 4 1 . . Fast Attach 7 | 7 . . . . Attach 5 | . . . 1 4 Detach . | . . . . . Swap 3 | 1 . . 1 1 Drop 1 | . . 1 . . Fire 58 | 9 17 8 13 11 Melee . | . . . . . Ram . | . . . . . Kick . | . . . . . Crush . | . . . . . Escape Stasis . | . . . . . Rewire . | . . . . . Trap . | . . . . . Miscellaneous . | . . . . . Route ------- -11/Scrapyard -10/Materials -10/Mines (discovered 2 exits: [*Mat] / [*Sub]) -10/Subcaves -9/Recycling History --------- Turn | Location | Event 42 | -11/Scrapyard | Discovered new exit (range 15) 117 | -11/Scrapyard | Entered Materials 312 | -10/Materials | Build established: Mutant 446 | -10/Materials | Discovered new exit (range 8) 460 | -10/Materials | Entered Mines 472 | -10/Mines | Learned Materials emergency access door positions 497 | -10/Mines | Learned location of Storage (-9) 606 | -10/Mines | Discovered new exit (range 9) 669 | -10/Mines | Discovered new exit (range 6) 688 | -10/Mines | Entered Subcaves 689 | -10/Subcaves | Approached by a straggling Scientist 703 | -10/Subcaves | A swath of the cavern ceiling suddenly collapsed 757 | -10/Subcaves | Discovered new exit (range 16) 776 | -10/Subcaves | Core integrity fell below 50% 799 | -10/Subcaves | Entered Recycling 1105 | -9/Recycling | Core integrity fell below 20% 1107 | -9/Recycling | Destroyed by Y-45 Defender with Heavy Assault Rifle Last Messages --------------- 01019_ Connecting with Terminal... >>Trojan(Botnet) Trojan loaded successfully. Testing... Terminal linked with 0 systems. Awaiting botnet instructions. >>Trojan(Track) Trojan loaded successfully. Testing... Tracking enabled and active. 01047_ Connecting with Terminal... 01060_ Y-45 Defender springs to life. 01061_ Ion Engine destroyed. 01064_ Seismic Detector destroyed. 01064_ Lgt. Treads destroyed. 01080_ Critical hit (Burn: +37). 01089_ Wheel destroyed. 01098_ Y-45 Defender suffers critical hit (Destroy). 01098_ Electrolysis Chamber disabled. 01101_ Lgt. Ion Engine destroyed. Map ----- +----------------------------------------------------+ | ??????????????????????????????????? | | ??????????????????????????????????? | | ??????????????????????????????????? | | ??????????????????????????????????? | | ??????????????????????????????????? | | ??????????????????????????????????? | | ??????????????????????????????????? | | ??????????????????????????????????? | | ???????? ?????????????????????????? | | ???????? ?????????????????????????? | | ???????? ?????????????????????????? | | ???????? ?????????????????????????? | | ???????? ?????????????????????????? | | ???????? ?????????????????????????? | | ???????? ?????????????????????????? | | ????#+##+#????????????????????????? | | ???## #????????????????????????? | | ???? #????????????????????????? | | ????# #########????????????????? | | ????# # #????????????????? | | ????# # ""#????????????????? | | ??### # T"#????????????????? | | ??#] # ""#????????????????? | | ??#]] # #????????????????? | | ??#]] # #????????????????? | | ??### #@ "" #????????????????? | | ????# Y """ #????????????????? | | ????# # """ #????????????????? | | ????# # #????????????????? | | ????# #########????????????????? | | ????# ########################?? | | ????# ### | | ????# | | ????# ############ | | ????# """ #??????????# | | ????# """ #??????????# | | ????# """ #??????????# | | ???## """ #??????????# """ | | ???#" """ #??????????# """ | | ???#T #??????????# """ | | ???#" #??????????# | | ???## """ #??????????# | | ????# """ #?????###### """ | | ????# """ #?????# """ | | ????# """ #?????# """ | | ????# """ #?????# | | ????# ??????# | | ????# ??????############## | | ????# ????????????????????? | | ????##########????????????????????? | +----------------------------------------------------+ Best States ------------- Heat Dissipation 25 Energy Generation 10 Energy Capacity 325 Matter Stores 300 Matter Capacity 300 Sight Range 16 Terrain Scan Density 10 Evasion (%) 40 Recoil Reduction 2 Item Schematics ----------------- None Robot Schematics ------------------ None Fabricated ------------ Nothing Repaired ---------- Nothing Studied --------- None Alien Tech Used ----------------- None Achievements -------------- None Challenges ------------ None Game ------ Seed ChainTiamatShell Manual? 0 Play Time 00:13:23 Cumulative 160.6 hours Start 2026.03.09 @ 15:26:54 End 2026.03.11 @ 00:27:25 Sessions 1 Manual Loads 0 Difficulty Rogue Special Mode None Game No. 171 Rogue 171 Adventurer 0 Explorer 0 Win Type - Total 0 Types 0/0/0/0/0/0/0/0/0/0 Lore% 55 Gallery% 45 Achievement% 32 Wizard Run 0 Options --------- Layout 0 ASCII 0 Keyboard 0 Movement Arrows Keybinds 0 Fullscreen 1 Font 20/SmallcapsGlow Map View 66x50 Zoom Use 0% Tactical HUD 1 Map Filters NONE Filters NONE Steam 1 RUN: 3c402e21-ed58-4a55-9d87-17474a9d0d35